[Event "*** Titled Tuesday Blitz"]
[Site "Chess.com"]
[Date "2020.10.20"]
[Round "9"]
[White "K_A_S_T_O_R"]
[Black "Fy_Rakotomaharo"]
[Result "1-0"]
[WhiteElo "2824"]
[BlackElo "2647"]
[TimeControl "180+1"]
[EndTime "11:47:57 PDT"]
[Termination "K_A_S_T_O_R won by checkmate"]

1. e4 {[%clk 0:03:00.9]} 1... c5 {[%clk 0:03:00.2]} 2. Nf3 {[%clk 0:03:00.9]}
2... e6 {[%clk 0:03:00.7]} 3. d4 {[%clk 0:03:01.4]} 3... cxd4 {[%clk 0:03:01.6]}
4. Nxd4 {[%clk 0:03:02]} 4... Nf6 {[%clk 0:03:02.3]} 5. Nc3 {[%clk 0:03:01.6]}
5... Nc6 {[%clk 0:03:02.9]} 6. Ndb5 {[%clk 0:03:01.3]} 6... Bb4 {[%clk
0:03:02.9]} 7. a3 {[%clk 0:03:00.4]} 7... Bxc3+ {[%clk 0:03:03.5]} 8. Nxc3
{[%clk 0:03:01.3]} 8... d5 {[%clk 0:03:04.1]} 9. exd5 {[%clk 0:03:01.4]} 9...
Nxd5 {[%clk 0:03:05]} 10. Nxd5 {[%clk 0:03:00.1]} 10... exd5 {[%clk 0:03:05.9]}
11. Bd3 {[%clk 0:02:56.9]} 11... O-O {[%clk 0:03:06.5]} 12. O-O {[%clk
0:02:56.9]} 12... Qh4 {[%clk 0:03:07]} 13. Re1 {[%clk 0:02:55.4]} 13... Be6
{[%clk 0:02:59.7]} 14. Qe2 {[%clk 0:02:48.2]} 14... Rac8 {[%clk 0:02:51.6]} 15.
Bd2 {[%clk 0:02:40.2]} 15... Rfe8 {[%clk 0:02:29.6]} 16. Bc3 {[%clk 0:02:31.4]}
16... d4 {[%clk 0:02:09.5]} 17. Bd2 {[%clk 0:02:31]} 17... Bd7 {[%clk
0:02:10.1]} 18. Qf3 {[%clk 0:02:14]} 18... Ne5 {[%clk 0:02:10.4]} 19. Qe4 {[%clk
0:02:14]} 19... Qxe4 {[%clk 0:02:02.3]} 20. Bxe4 {[%clk 0:02:14.1]} 20... Bc6
{[%clk 0:01:56.9]} 21. Bf5 {[%clk 0:02:06.5]} 21... Rcd8 {[%clk 0:01:52.4]} 22.
Bf4 {[%clk 0:02:02.7]} 22... Nc4 {[%clk 0:01:43.4]} 23. Rxe8+ {[%clk 0:01:37.9]}
23... Rxe8 {[%clk 0:01:41.3]} 24. b3 {[%clk 0:01:36.7]} 24... Nxa3 {[%clk
0:01:37.9]} 25. h4 {[%clk 0:01:35.8]} 25... Nb5 {[%clk 0:01:29.7]} 26. Bd3
{[%clk 0:01:31.2]} 26... a6 {[%clk 0:01:30.1]} 27. Ra4 {[%clk 0:01:23.3]} 27...
Rd8 {[%clk 0:01:08.7]} 28. Rc4 {[%clk 0:01:14.7]} 28... f6 {[%clk 0:01:03.2]}
29. Rc5 {[%clk 0:01:13.9]} 29... g6 {[%clk 0:00:51.9]} 30. h5 {[%clk 0:01:11.3]}
30... Kf7 {[%clk 0:00:52.2]} 31. Bc4+ {[%clk 0:01:06.6]} 31... Ke7 {[%clk
0:00:52.5]} 32. hxg6 {[%clk 0:01:06.2]} 32... hxg6 {[%clk 0:00:52.7]} 33. Bd3
{[%clk 0:01:05.9]} 33... g5 {[%clk 0:00:51.7]} 34. Bg3 {[%clk 0:01:05.4]} 34...
Nd6 {[%clk 0:00:48.4]} 35. f3 {[%clk 0:00:54.6]} 35... Nb5 {[%clk 0:00:34.2]}
36. f4 {[%clk 0:00:51.4]} 36... gxf4 {[%clk 0:00:33]} 37. Bxf4 {[%clk 0:00:51]}
37... Nc3 {[%clk 0:00:30.9]} 38. Rh5 {[%clk 0:00:47.8]} 38... Rg8 {[%clk
0:00:14.6]} 39. Rh7+ {[%clk 0:00:44.6]} 39... Ke6 {[%clk 0:00:13.4]} 40. g3
{[%clk 0:00:44.8]} 40... Be4 {[%clk 0:00:09.1]} 41. Bc4+ {[%clk 0:00:40.9]}
41... Bd5 {[%clk 0:00:08.1]} 42. Rxb7 {[%clk 0:00:37.9]} 42... Bxc4 {[%clk
0:00:06.6]} 43. bxc4 {[%clk 0:00:38]} 43... Ne2+ {[%clk 0:00:05.9]} 44. Kf2
{[%clk 0:00:38.3]} 44... Nxf4 {[%clk 0:00:06.5]} 45. gxf4 {[%clk 0:00:39.2]}
45... Rc8 {[%clk 0:00:06.8]} 46. Rb4 {[%clk 0:00:35.2]} 46... Kf5 {[%clk
0:00:07.2]} 47. Kf3 {[%clk 0:00:35.5]} 47... Re8 {[%clk 0:00:07]} 48. Rb3 {[%clk
0:00:34.3]} 48... Re1 {[%clk 0:00:06.5]} 49. Ra3 {[%clk 0:00:34.3]} 49... Rf1+
{[%clk 0:00:06.5]} 50. Ke2 {[%clk 0:00:34.1]} 50... Rxf4 {[%clk 0:00:06.5]} 51.
Ra5+ {[%clk 0:00:34.1]} 51... Ke4 {[%clk 0:00:06.7]} 52. Rxa6 {[%clk 0:00:34.7]}
52... f5 {[%clk 0:00:06.2]} 53. Re6# {[%clk 0:00:34.3]} 1-0

[Event "*** Titled Tuesday Blitz"]
[Site "Chess.com"]
[Date "2020.10.20"]
[Round "9"]
[White "Fusikk"]
[Black "Belka1989"]
[Result "0-1"]
[WhiteElo "2523"]
[BlackElo "2333"]
[TimeControl "180+1"]
[EndTime "11:48:00 PDT"]
[Termination "Belka1989 won on time"]

1. e4 {[%clk 0:03:00.9]} 1... c5 {[%clk 0:02:55]} 2. Nc3 {[%clk 0:03:00.4]} 2...
Nc6 {[%clk 0:02:51.3]} 3. f4 {[%clk 0:02:58.6]} 3... e6 {[%clk 0:02:50.2]} 4.
Bb5 {[%clk 0:02:58.3]} 4... Nge7 {[%clk 0:02:49.9]} 5. Nf3 {[%clk 0:02:58.1]}
5... a6 {[%clk 0:02:50.1]} 6. Bxc6 {[%clk 0:02:57.6]} 6... Nxc6 {[%clk 0:02:51]}
7. O-O {[%clk 0:02:57.8]} 7... d6 {[%clk 0:02:44.1]} 8. d3 {[%clk 0:02:57.8]}
8... Be7 {[%clk 0:02:43.3]} 9. a4 {[%clk 0:02:44]} 9... O-O {[%clk 0:02:41]} 10.
Qe1 {[%clk 0:02:40.2]} 10... d5 {[%clk 0:02:30.2]} 11. e5 {[%clk 0:02:31.3]}
11... Nb4 {[%clk 0:02:21.1]} 12. Qe2 {[%clk 0:02:23.3]} 12... Bd7 {[%clk
0:02:21.3]} 13. Nd1 {[%clk 0:02:09]} 13... d4 {[%clk 0:02:15.5]} 14. Nf2 {[%clk
0:02:06.7]} 14... Bc6 {[%clk 0:02:12.7]} 15. Ne1 {[%clk 0:01:52.3]} 15... b5
{[%clk 0:02:12.5]} 16. b3 {[%clk 0:01:37.7]} 16... bxa4 {[%clk 0:02:06.8]} 17.
bxa4 {[%clk 0:01:38.6]} 17... a5 {[%clk 0:01:56.5]} 18. Nd1 {[%clk 0:01:36.6]}
18... Rb8 {[%clk 0:01:45.5]} 19. Nb2 {[%clk 0:01:35.8]} 19... Nd5 {[%clk
0:01:38.3]} 20. Nd1 {[%clk 0:01:22.6]} 20... Qd7 {[%clk 0:01:30.9]} 21. Bd2
{[%clk 0:01:21.7]} 21... Nb4 {[%clk 0:01:26.1]} 22. Nb2 {[%clk 0:01:20.1]} 22...
Nxc2 {[%clk 0:01:23.9]} 23. Nxc2 {[%clk 0:01:12.8]} 23... Rxb2 {[%clk
0:01:24.3]} 24. Na3 {[%clk 0:01:09.9]} 24... Bxa4 {[%clk 0:01:01.5]} 25. Nc4
{[%clk 0:01:07.3]} 25... Rbb8 {[%clk 0:00:53.1]} 26. Rfc1 {[%clk 0:00:34.7]}
26... Bb5 {[%clk 0:00:41.2]} 27. Rxa5 {[%clk 0:00:34.1]} 27... Bxc4 {[%clk
0:00:41.4]} 28. Rxc4 {[%clk 0:00:33.4]} 28... Ra8 {[%clk 0:00:41.7]} 29. Rxa8
{[%clk 0:00:27.4]} 29... Rxa8 {[%clk 0:00:42.6]} 30. h3 {[%clk 0:00:24.8]} 30...
Ra2 {[%clk 0:00:38.7]} 31. Rc1 {[%clk 0:00:15.6]} 31... Qd5 {[%clk 0:00:37.9]}
32. Rb1 {[%clk 0:00:14.2]} 32... g6 {[%clk 0:00:30.8]} 33. Qd1 {[%clk
0:00:05.7]} 33... Kg7 {[%clk 0:00:28.1]} 34. Qc1 {[%clk 0:00:04.1]} 34... Bh4
{[%clk 0:00:25.4]} 35. Rb2 {[%clk 0:00:03.9]} 35... Bg3 {[%clk 0:00:21.4]} 36.
Rxa2 {[%clk 0:00:03.3]} 36... Qxa2 {[%clk 0:00:22.3]} 37. Qd1 {[%clk 0:00:02]}
37... c4 {[%clk 0:00:19.4]} 38. dxc4 {[%clk 0:00:01.7]} 38... Qxc4 {[%clk
0:00:20.3]} 39. Qf3 {[%clk 0:00:01.6]} 39... Bh4 {[%clk 0:00:16.2]} 40. Kh2
{[%clk 0:00:02.1]} 40... Be7 {[%clk 0:00:16.1]} 41. Qe4 {[%clk 0:00:01.2]} 41...
Bc5 {[%clk 0:00:10.5]} 0-1

[Event "*** Titled Tuesday Blitz"]
[Site "Chess.com"]
[Date "2020.10.20"]
[Round "9"]
[White "WuinaterJr"]
[Black "tdf98pantani"]
[Result "0-1"]
[WhiteElo "2536"]
[BlackElo "2727"]
[TimeControl "180+1"]
[EndTime "11:48:02 PDT"]
[Termination "tdf98pantani won by resignation"]

1. d4 {[%clk 0:03:00.9]} 1... Nf6 {[%clk 0:02:59.5]} 2. c4 {[%clk 0:03:00.8]}
2... g6 {[%clk 0:02:59.8]} 3. Nf3 {[%clk 0:03:01]} 3... Bg7 {[%clk 0:02:59.7]}
4. g3 {[%clk 0:03:00.9]} 4... O-O {[%clk 0:02:58]} 5. Bg2 {[%clk 0:03:01.5]}
5... c6 {[%clk 0:02:57.5]} 6. O-O {[%clk 0:03:01.4]} 6... d5 {[%clk 0:02:57.8]}
7. Nc3 {[%clk 0:03:01.5]} 7... dxc4 {[%clk 0:02:57.1]} 8. Ne5 {[%clk 0:02:59]}
8... Ng4 {[%clk 0:02:56.6]} 9. Bf4 {[%clk 0:02:49.3]} 9... Nxe5 {[%clk
0:02:54.6]} 10. dxe5 {[%clk 0:02:49]} 10... Qxd1 {[%clk 0:02:48.9]} 11. Rfxd1
{[%clk 0:02:48.8]} 11... Be6 {[%clk 0:02:49]} 12. Ne4 {[%clk 0:02:45.8]} 12...
Nd7 {[%clk 0:02:31.3]} 13. Ng5 {[%clk 0:02:45]} 13... Nxe5 {[%clk 0:02:31.3]}
14. Nxe6 {[%clk 0:02:44.8]} 14... fxe6 {[%clk 0:02:31.6]} 15. Rac1 {[%clk
0:02:43.4]} 15... Rad8 {[%clk 0:02:25.8]} 16. h3 {[%clk 0:02:40.4]} 16... b5
{[%clk 0:02:15.8]} 17. Bxe5 {[%clk 0:02:34.2]} 17... Bxe5 {[%clk 0:02:15.4]} 18.
Bxc6 {[%clk 0:02:34.8]} 18... Bxb2 {[%clk 0:02:15]} 19. Rxd8 {[%clk 0:02:34.5]}
19... Rxd8 {[%clk 0:02:14.6]} 20. Rc2 {[%clk 0:02:34.3]} 20... c3 {[%clk
0:01:31.1]} 21. Bxb5 {[%clk 0:02:34.1]} 21... Kf7 {[%clk 0:01:25.8]} 22. f4
{[%clk 0:02:30.7]} 22... Kf6 {[%clk 0:01:25.3]} 23. Kf2 {[%clk 0:02:28.4]} 23...
e5 {[%clk 0:01:23.6]} 24. e4 {[%clk 0:02:20.6]} 24... Rd1 {[%clk 0:01:20]} 25.
Ba4 {[%clk 0:02:11.4]} 25... Rh1 {[%clk 0:01:16.8]} 26. Kg2 {[%clk 0:02:08.5]}
26... Ra1 {[%clk 0:01:15.1]} 27. Bb3 {[%clk 0:02:06.7]} 27... a5 {[%clk
0:01:10.8]} 28. Rf2 {[%clk 0:02:04.6]} 28... a4 {[%clk 0:01:05.4]} 29. Bxa4
{[%clk 0:02:02.6]} 29... Rxa2 {[%clk 0:01:05.6]} 30. Bb3 {[%clk 0:01:56.7]}
30... Ra3 {[%clk 0:00:59.8]} 31. Bc2 {[%clk 0:01:56.4]} 31... Bc1 {[%clk
0:00:58.2]} 32. f5 {[%clk 0:01:56.1]} 32... Be3 {[%clk 0:00:54.6]} 33. Re2
{[%clk 0:01:55]} 33... Bd2 {[%clk 0:00:53.9]} 34. fxg6 {[%clk 0:01:40.6]} 34...
hxg6 {[%clk 0:00:53.5]} 35. g4 {[%clk 0:01:18.5]} 35... Ra2 {[%clk 0:00:51.2]}
36. Bd3 {[%clk 0:01:18.1]} 36... c2 {[%clk 0:00:46.7]} 37. Rxd2 {[%clk 0:01:18]}
37... c1=Q {[%clk 0:00:46.2]} 38. Rxa2 {[%clk 0:01:18.4]} 38... Qe3 {[%clk
0:00:39.4]} 39. Rf2+ {[%clk 0:01:18.1]} 39... Kg5 {[%clk 0:00:39.5]} 40. Rf3
{[%clk 0:01:17.2]} 40... Qd2+ {[%clk 0:00:39.5]} 41. Kg3 {[%clk 0:01:16.5]}
41... Qe1+ {[%clk 0:00:39.3]} 42. Kg2 {[%clk 0:01:16.8]} 42... Kh4 {[%clk
0:00:39.7]} 43. Rf2 {[%clk 0:01:06.6]} 43... Qe3 {[%clk 0:00:36]} 44. Rf3 {[%clk
0:01:03.2]} 44... Qd2+ {[%clk 0:00:35.5]} 45. Kg1 {[%clk 0:01:01.2]} 45... Qe1+
{[%clk 0:00:33.5]} 46. Kg2 {[%clk 0:01:01.2]} 46... Qd1 {[%clk 0:00:28.3]} 47.
Bf1 {[%clk 0:00:48.4]} 47... Qd2+ {[%clk 0:00:28.2]} 48. Rf2 {[%clk 0:00:34]}
48... Qe3 {[%clk 0:00:27.7]} 49. Re2 {[%clk 0:00:34.1]} 49... Qg3+ {[%clk
0:00:25.2]} 50. Kh1 {[%clk 0:00:34.3]} 50... Qf3+ {[%clk 0:00:22.9]} 51. Kg1
{[%clk 0:00:34]} 51... e6 {[%clk 0:00:18.7]} 52. Rf2 {[%clk 0:00:24.1]} 52...
Qe3 {[%clk 0:00:18.5]} 53. Bg2 {[%clk 0:00:21.9]} 53... Kg3 {[%clk 0:00:18.3]}
0-1

[Event "*** Titled Tuesday Blitz"]
[Site "Chess.com"]
[Date "2020.10.20"]
[Round "9"]
[White "giantslayer83"]
[Black "Lion-Al-Messi"]
[Result "1-0"]
[WhiteElo "2715"]
[BlackElo "2562"]
[TimeControl "180+1"]
[EndTime "11:48:03 PDT"]
[Termination "giantslayer83 won by resignation"]

1. c4 {[%clk 0:03:00.9]} 1... b6 {[%clk 0:03:00.9]} 2. Nc3 {[%clk 0:03:00.4]}
2... Bb7 {[%clk 0:03:01.1]} 3. e4 {[%clk 0:03:01]} 3... e5 {[%clk 0:03:01.4]} 4.
Nf3 {[%clk 0:03:00.7]} 4... Nc6 {[%clk 0:03:01.2]} 5. a3 {[%clk 0:02:57.1]} 5...
Nf6 {[%clk 0:03:00.8]} 6. d4 {[%clk 0:02:54.2]} 6... exd4 {[%clk 0:02:57.2]} 7.
Nxd4 {[%clk 0:02:55.1]} 7... Nxd4 {[%clk 0:02:53.2]} 8. Qxd4 {[%clk 0:02:56]}
8... Bc5 {[%clk 0:02:53.8]} 9. Qd3 {[%clk 0:02:55.5]} 9... O-O {[%clk 0:02:53]}
10. Be2 {[%clk 0:02:36.2]} 10... Re8 {[%clk 0:02:53]} 11. Bf3 {[%clk 0:02:25.4]}
11... Qe7 {[%clk 0:02:53.3]} 12. Bg5 {[%clk 0:02:11.6]} 12... h6 {[%clk
0:02:46.7]} 13. Bxf6 {[%clk 0:02:11.2]} 13... Qxf6 {[%clk 0:02:47.6]} 14. O-O
{[%clk 0:02:11.4]} 14... Rad8 {[%clk 0:02:35.4]} 15. e5 {[%clk 0:02:10.4]} 15...
Qxe5 {[%clk 0:02:26.9]} 16. Bxb7 {[%clk 0:02:10.1]} 16... c6 {[%clk 0:02:23.1]}
17. Rad1 {[%clk 0:02:09.3]} 17... a5 {[%clk 0:02:22]} 18. Na4 {[%clk 0:01:57.4]}
18... Qc7 {[%clk 0:02:21.9]} 19. Ba6 {[%clk 0:01:47.9]} 19... Qa7 {[%clk
0:02:21]} 20. b4 {[%clk 0:01:25]} 20... axb4 {[%clk 0:02:15.9]} 21. axb4 {[%clk
0:01:25.9]} 21... Qxa6 {[%clk 0:02:13.8]} 22. bxc5 {[%clk 0:01:22.8]} 22... Qxa4
{[%clk 0:02:13.3]} 23. cxb6 {[%clk 0:01:23.7]} 23... c5 {[%clk 0:02:10]} 24. Qd5
{[%clk 0:01:20.7]} 24... Qc6 {[%clk 0:02:07.1]} 25. Qxc6 {[%clk 0:01:15.3]}
25... dxc6 {[%clk 0:02:08]} 26. Rxd8 {[%clk 0:01:15.8]} 26... Rxd8 {[%clk
0:02:08.9]} 27. Rb1 {[%clk 0:01:16.3]} 27... Rb8 {[%clk 0:02:08.8]} 28. b7
{[%clk 0:01:11.9]} 28... Kf8 {[%clk 0:02:06.5]} 29. g4 {[%clk 0:01:12.1]} 29...
Ke7 {[%clk 0:02:06.3]} 30. Kg2 {[%clk 0:01:09.8]} 30... Kd6 {[%clk 0:02:05.7]}
31. Kf3 {[%clk 0:01:08.9]} 31... Kc7 {[%clk 0:02:05.7]} 32. Ke4 {[%clk
0:01:07.2]} 32... Rxb7 {[%clk 0:02:05.8]} 33. Rxb7+ {[%clk 0:01:06.8]} 33...
Kxb7 {[%clk 0:02:06.7]} 34. Ke5 {[%clk 0:01:07.7]} 34... Kc7 {[%clk 0:02:07]}
35. f4 {[%clk 0:01:05.8]} 35... Kd7 {[%clk 0:02:06.7]} 36. g5 {[%clk 0:01:06.3]}
36... Ke7 {[%clk 0:01:05.8]} 37. gxh6 {[%clk 0:00:40.8]} 37... gxh6 {[%clk
0:01:06.7]} 38. Kf5 {[%clk 0:00:34.3]} 38... Ke8 {[%clk 0:01:06.7]} 39. Kf6
{[%clk 0:00:34.1]} 39... Kf8 {[%clk 0:01:06.8]} 40. f5 {[%clk 0:00:32.6]} 40...
Kg8 {[%clk 0:01:02.4]} 41. Ke7 {[%clk 0:00:26.5]} 41... Kg7 {[%clk 0:01:02.2]}
42. h3 {[%clk 0:00:25.6]} 42... Kh7 {[%clk 0:00:18]} 43. Kxf7 {[%clk 0:00:18.7]}
43... h5 {[%clk 0:00:15.8]} 44. h4 {[%clk 0:00:18.8]} 44... Kh6 {[%clk
0:00:14.6]} 45. Kf6 {[%clk 0:00:18.9]} 45... Kh7 {[%clk 0:00:14.7]} 46. Ke7
{[%clk 0:00:17]} 46... Kh6 {[%clk 0:00:14.6]} 47. f6 {[%clk 0:00:17.3]} 47...
Kg6 {[%clk 0:00:14.7]} 48. Ke6 {[%clk 0:00:16]} 1-0

[Event "*** Titled Tuesday Blitz"]
[Site "Chess.com"]
[Date "2020.10.20"]
[Round "9"]
[White "A-S-00"]
[Black "shnitez"]
[Result "1-0"]
[WhiteElo "2300"]
[BlackElo "2422"]
[TimeControl "180+1"]
[EndTime "11:48:03 PDT"]
[Termination "A-S-00 won by resignation"]

1. d4 {[%clk 0:02:59.7]} 1... Nf6 {[%clk 0:02:54.6]} 2. c4 {[%clk 0:02:59.2]}
2... g6 {[%clk 0:02:54.3]} 3. Nf3 {[%clk 0:02:59.2]} 3... Bg7 {[%clk 0:02:54]}
4. Nc3 {[%clk 0:02:59.4]} 4... d5 {[%clk 0:02:54]} 5. cxd5 {[%clk 0:02:58.7]}
5... Nxd5 {[%clk 0:02:54.9]} 6. e3 {[%clk 0:02:58.2]} 6... O-O {[%clk
0:02:54.5]} 7. Bc4 {[%clk 0:02:57.8]} 7... Nxc3 {[%clk 0:02:50.9]} 8. bxc3
{[%clk 0:02:57.9]} 8... c5 {[%clk 0:02:51.6]} 9. O-O {[%clk 0:02:57.5]} 9... Qc7
{[%clk 0:02:48.6]} 10. Rb1 {[%clk 0:02:54.5]} 10... cxd4 {[%clk 0:02:45.6]} 11.
Bd3 {[%clk 0:02:45.3]} 11... dxc3 {[%clk 0:02:42]} 12. Qc2 {[%clk 0:02:45.2]}
12... Nd7 {[%clk 0:02:33.5]} 13. Nd4 {[%clk 0:02:35.2]} 13... Nc5 {[%clk
0:02:29.4]} 14. Be2 {[%clk 0:02:34.2]} 14... e5 {[%clk 0:02:19.9]} 15. Nb5
{[%clk 0:02:31.5]} 15... Qa5 {[%clk 0:01:55.1]} 16. Nxc3 {[%clk 0:02:27.4]}
16... a6 {[%clk 0:01:43.2]} 17. Bd2 {[%clk 0:02:25.3]} 17... Qd8 {[%clk
0:01:22.3]} 18. Rfd1 {[%clk 0:02:23.9]} 18... Bf5 {[%clk 0:01:13.3]} 19. e4
{[%clk 0:02:23.2]} 19... Bd7 {[%clk 0:01:10]} 20. Be3 {[%clk 0:02:22.4]} 20...
Ne6 {[%clk 0:00:51.4]} 21. Rxb7 {[%clk 0:01:31.7]} 21... Nd4 {[%clk 0:00:49.9]}
22. Qd2 {[%clk 0:01:26.2]} 22... Bc6 {[%clk 0:00:43.9]} 23. Rbb1 {[%clk
0:01:19.5]} 23... Qe7 {[%clk 0:00:25.9]} 24. Nd5 {[%clk 0:01:15.3]} 24... Bxd5
{[%clk 0:00:18]} 25. exd5 {[%clk 0:01:15.5]} 25... Rfd8 {[%clk 0:00:15.5]} 26.
Bc4 {[%clk 0:01:15.1]} 26... Qd6 {[%clk 0:00:09.6]} 27. Qa5 {[%clk 0:01:11.8]}
27... h5 {[%clk 0:00:07.9]} 28. Rb6 {[%clk 0:01:08.4]} 28... Qd7 {[%clk
0:00:07.3]} 29. h3 {[%clk 0:01:01.9]} 29... Ra7 {[%clk 0:00:06.9]} 30. Rdb1
{[%clk 0:01:00.7]} 30... Raa8 {[%clk 0:00:06.7]} 31. Rb7 {[%clk 0:00:59.8]}
31... Qf5 {[%clk 0:00:07]} 32. d6 {[%clk 0:00:55.4]} 32... Rd7 {[%clk
0:00:07.1]} 33. Rxd7 {[%clk 0:00:49.4]} 33... Qxd7 {[%clk 0:00:07.1]} 34. Qd5
{[%clk 0:00:49.2]} 34... Rd8 {[%clk 0:00:06.1]} 35. Rb7 {[%clk 0:00:48.6]} 35...
Qe8 {[%clk 0:00:04.3]} 36. Rxf7 {[%clk 0:00:42.3]} 36... Kh8 {[%clk 0:00:04.1]}
37. Re7 {[%clk 0:00:41.3]} 37... Qf8 {[%clk 0:00:03.2]} 38. Bg5 {[%clk
0:00:33.4]} 38... Nf5 {[%clk 0:00:03.3]} 39. Rxg7 {[%clk 0:00:28]} 39... Kxg7
{[%clk 0:00:02.6]} 40. Bxd8 {[%clk 0:00:27.2]} 40... Qxd8 {[%clk 0:00:03.5]} 41.
Qf7+ {[%clk 0:00:27.2]} 41... Kh6 {[%clk 0:00:03.9]} 42. d7 {[%clk 0:00:27.3]}
42... Nd6 {[%clk 0:00:03.2]} 43. Qe6 {[%clk 0:00:22.3]} 43... Nxc4 {[%clk
0:00:02.7]} 44. Qe8 {[%clk 0:00:22.5]} 44... Qb6 {[%clk 0:00:02.2]} 45. d8=Q
{[%clk 0:00:21]} 45... Qb1+ {[%clk 0:00:03.1]} 46. Kh2 {[%clk 0:00:21.1]} 46...
h4 {[%clk 0:00:01.6]} 1-0

[Event "*** Titled Tuesday Blitz"]
[Site "Chess.com"]
[Date "2020.10.20"]
[Round "9"]
[White "dennisodessa"]
[Black "GMTalks_Youtube"]
[Result "1/2-1/2"]
[WhiteElo "2445"]
[BlackElo "2608"]
[TimeControl "180+1"]
[EndTime "11:48:04 PDT"]
[Termination "Game drawn by agreement"]

1. d4 {[%clk 0:03:00.1]} 1... d5 {[%clk 0:02:59.2]} 2. c4 {[%clk 0:02:59.3]}
2... dxc4 {[%clk 0:02:59.1]} 3. e3 {[%clk 0:02:55.8]} 3... e5 {[%clk 0:02:58.4]}
4. Bxc4 {[%clk 0:02:54.6]} 4... Nc6 {[%clk 0:02:58.4]} 5. d5 {[%clk 0:02:45.8]}
5... Nce7 {[%clk 0:02:57.9]} 6. Nc3 {[%clk 0:02:45.4]} 6... Ng6 {[%clk
0:02:53.3]} 7. Nge2 {[%clk 0:02:42.6]} 7... a6 {[%clk 0:02:52.2]} 8. a4 {[%clk
0:02:42.1]} 8... Nf6 {[%clk 0:02:47.6]} 9. O-O {[%clk 0:02:41.9]} 9... Bd6
{[%clk 0:02:43]} 10. Ng3 {[%clk 0:02:16.3]} 10... O-O {[%clk 0:02:39.8]} 11. f3
{[%clk 0:02:09.4]} 11... Bd7 {[%clk 0:02:23.3]} 12. Kh1 {[%clk 0:02:07.6]} 12...
Qe7 {[%clk 0:02:14.5]} 13. Qb3 {[%clk 0:02:03.4]} 13... Rab8 {[%clk 0:02:09.4]}
14. a5 {[%clk 0:01:46.3]} 14... Kh8 {[%clk 0:01:57.5]} 15. Qc2 {[%clk
0:01:39.5]} 15... Nh4 {[%clk 0:01:41.3]} 16. Bd3 {[%clk 0:01:19.4]} 16... h6
{[%clk 0:01:29.2]} 17. Bf5 {[%clk 0:01:14.5]} 17... Nxf5 {[%clk 0:01:23.2]} 18.
Nxf5 {[%clk 0:01:15.4]} 18... Bxf5 {[%clk 0:01:23.7]} 19. Qxf5 {[%clk 0:01:16]}
19... Qd7 {[%clk 0:00:56.7]} 20. Qd3 {[%clk 0:01:01.9]} 20... Ne8 {[%clk
0:00:52.2]} 21. e4 {[%clk 0:00:59.9]} 21... f5 {[%clk 0:00:51]} 22. exf5 {[%clk
0:00:59.4]} 22... Qxf5 {[%clk 0:00:50.3]} 23. Qxf5 {[%clk 0:00:58.3]} 23... Rxf5
{[%clk 0:00:50.1]} 24. Be3 {[%clk 0:00:57.7]} 24... Rd8 {[%clk 0:00:46.7]} 25.
Ne4 {[%clk 0:00:53.5]} 25... Rf7 {[%clk 0:00:37.4]} 26. Rfd1 {[%clk 0:00:44.3]}
26... Rfd7 {[%clk 0:00:36.7]} 27. Bc5 {[%clk 0:00:22.5]} 27... Nf6 {[%clk
0:00:23.5]} 28. Bxd6 {[%clk 0:00:18.6]} 28... Nxe4 {[%clk 0:00:17.2]} 29. fxe4
{[%clk 0:00:19.5]} 29... Rxd6 {[%clk 0:00:17.3]} 30. Rdc1 {[%clk 0:00:16.1]}
30... c6 {[%clk 0:00:16.5]} 31. dxc6 {[%clk 0:00:17]} 31... bxc6 {[%clk
0:00:16.7]} 32. h3 {[%clk 0:00:16.9]} 32... Rb8 {[%clk 0:00:16.4]} 33. Rc5
{[%clk 0:00:16.8]} 33... Rxb2 {[%clk 0:00:16.1]} 34. Rxe5 {[%clk 0:00:16.9]}
34... Rdd2 {[%clk 0:00:16.3]} 35. Rg1 {[%clk 0:00:17.3]} 35... Rbc2 {[%clk
0:00:16.3]} 36. Re6 {[%clk 0:00:14.9]} 36... Re2 {[%clk 0:00:15.4]} 37. e5
{[%clk 0:00:13.2]} 37... Kg8 {[%clk 0:00:15.8]} 38. Re7 {[%clk 0:00:10.9]} 38...
Kf8 {[%clk 0:00:15.6]} 39. Ra7 {[%clk 0:00:11.3]} 39... Rxe5 {[%clk 0:00:15.8]}
40. Rxa6 {[%clk 0:00:12.2]} 40... Ra2 {[%clk 0:00:13.5]} 41. Rf1+ {[%clk
0:00:12.3]} 41... Kg8 {[%clk 0:00:13.4]} 42. Rf3 {[%clk 0:00:10.2]} 42... Rexa5
{[%clk 0:00:12.9]} 43. Rxc6 {[%clk 0:00:10.4]} 43... R2a3 {[%clk 0:00:12.8]} 44.
Rxa3 {[%clk 0:00:10.3]} 44... Rxa3 {[%clk 0:00:12.9]} 45. Rc2 {[%clk 0:00:11.2]}
45... Rd3 {[%clk 0:00:12]} 1/2-1/2